bitfinex-derivatives/quotes_SOLF0:USTF0_20250904
["timestamp","ask_amount","ask_price","bid_price","bid_amount"]
[1757006149146,0.03091379,204.77,204.73,0.03645819]
[1757006149545,0.03091379,204.77,204.74,7.88]
[1757006150345,0.03091379,204.77,204.73,0.03645819]
[1757006151043,7.38091379,204.77,204.74,7.88]
[1757006151645,0.03091379,204.77,204.73,0.03645819]
[1757006151845,0.03091379,204.77,204.74,7.88]
[1757006152243,7.38091379,204.77,204.74,7.88]
[1757006154947,7.38091379,204.77,204.73,0.03645819]
[1757006155248,7.38091379,204.77,204.74,7.88]
[1757006155745,7.38091379,204.77,204.73,0.03645819]
[1757006156144,7.38091379,204.77,204.74,7.88]
[1757006156846,0.03091379,204.77,204.73,0.03645819]
[1757006157145,7.35,204.76,204.73,0.03645819]
[1757006157346,0.03091379,204.77,204.73,0.03645819]
[1757006157739,7.35,204.76,204.73,0.03645819]
[1757006158138,0.03091379,204.77,204.73,0.03645819]
[1757006158338,7.35,204.76,204.73,0.03645819]
[1757006158538,0.03091379,204.77,204.73,0.03645819]
[1757006158738,7.35,204.76,204.73,0.03645819]
[1757006159447,0.03091379,204.77,204.73,0.03645819]
[1757006159650,7.35,204.76,204.73,0.03645819]
[1757006159947,7.35,204.76,204.73,7.91645819]
[1757006160143,0.03091379,204.77,204.73,0.03645819]
[1757006160742,7.35,204.76,204.73,0.03645819]
[1757006160945,0.03091379,204.77,204.73,0.03645819]
[1757006161251,7.35,204.76,204.73,0.03645819]
[1757006161450,0.03091379,204.77,204.73,0.03645819]
[1757006161845,7.35,204.76,204.73,0.03645819]
[1757006162152,0.03091379,204.77,204.73,0.03645819]
[1757006162348,7.35,204.76,204.73,0.03645819]
[1757006162851,0.03091379,204.77,204.73,0.03645819]
[1757006163442,7.35,204.76,204.73,0.03645819]
[1757006163852,0.03091379,204.77,204.73,0.03645819]
[1757006164450,7.35,204.76,204.73,0.03645819]
[1757006164651,7.35,204.76,204.73,7.91645819]
[1757006165245,0.03091379,204.77,204.74,7.88]
[1757006165552,7.35,204.76,204.73,0.03645819]
[1757006166051,7.35,204.76,204.73,7.91645819]
[1757006166354,0.03091379,204.77,204.73,0.03645819]
[1757006166547,0.03091379,204.77,204.74,7.88]
[1757006167843,7.38091379,204.77,204.74,7.88]
[1757006168547,7.35,204.76,204.73,7.91645819]
[1757006170153,0.03091379,204.77,204.73,7.91645819]
[1757006170349,0.03091379,204.77,204.73,0.03645819]
[1757006170550,7.35,204.76,204.73,0.03645819]
[1757006170750,0.03091379,204.77,204.73,0.03645819]
[1757006171553,7.35,204.76,204.73,0.03645819]
[1757006172350,0.03091379,204.77,204.73,0.03645819]
[1757006172656,7.35,204.76,204.73,0.03645819]
[1757006173351,0.03091379,204.77,204.73,0.03645819]
[1757006173553,7.35,204.76,204.73,0.03645819]
[1757006174358,0.03091379,204.77,204.73,0.03645819]
[1757006174558,7.35,204.76,204.73,0.03645819]
[1757006175058,7.35,204.74,204.73,0.03645819]
[1757006177563,130.11695875,204.74,204.73,0.03645819]
[1757006181968,7.35,204.74,204.73,0.03645819]
[1757006182164,49.36,204.74,204.73,0.03645819]
[1757006182358,56.98,204.74,204.73,0.03645819]
[1757006183359,85.8,204.74,204.73,0.03645819]
[1757006183769,7.62,204.74,204.73,0.03645819]
[1757006183971,36.04,204.74,204.73,0.03645819]
[1757006184668,7.62,204.74,204.73,0.03645819]
[1757006187468,10.62695875,204.74,204.73,0.03645819]
[1757006188275,7.62,204.74,204.73,0.03645819]
[1757006192268,7.62,204.76,204.73,7.92645819]
[1757006192469,82.44,204.76,204.73,0.03645819]
[1757006192876,7.62,204.75,204.73,0.03645819]
[1757006193273,82.44,204.76,204.73,0.03645819]
[1757006193474,7.62,204.75,204.73,0.03645819]
[1757006193670,82.44,204.76,204.73,0.03645819]
[1757006193878,7.62,204.75,204.73,0.03645819]
[1757006194270,82.44,204.76,204.73,0.03645819]
[1757006195177,7.62,204.75,204.73,0.03645819]
[1757006195479,82.44,204.76,204.73,0.03645819]
[1757006195680,7.62,204.75,204.73,0.03645819]
[1757006195871,82.44,204.76,204.73,0.03645819]
[1757006196077,7.62,204.75,204.73,0.03645819]
[1757006196375,7.62,204.76,204.73,0.03645819]
[1757006196771,119.73091379,204.77,204.73,0.03645819]
[1757006197177,7.62,204.76,204.73,0.03645819]
[1757006198476,119.73091379,204.77,204.73,0.03645819]
[1757006199180,7.62,204.76,204.73,0.03645819]
[1757006199381,7.62,204.74,204.73,0.03645819]
[1757006199777,7.62,204.74,204.66,7.89]
[1757006200074,3.00695875,204.72,204.66,7.89]
[1757006200273,7.62,204.71,204.66,7.89]
[1757006200475,3.00695875,204.72,204.66,7.89]
[1757006200873,0.03415401,204.71,204.66,7.89]
[1757006201073,7.62,204.7,204.66,7.89]
[1757006201274,7.62,204.7,204.62,7.89]
[1757006201473,1.92609858,204.69,204.63,1.92609858]
[1757006201782,1.92609858,204.69,204.64,7.89]
[1757006202078,1.92609858,204.69,204.63,1.92609858]
[1757006202285,1.92609858,204.69,204.64,7.89]
[1757006202482,1.92609858,204.69,204.63,1.92609858]
[1757006202778,1.92609858,204.69,204.64,7.89]
[1757006202984,1.92609858,204.69,204.63,1.92609858]
[1757006203479,1.92609858,204.69,204.64,7.89]
[1757006203982,1.92609858,204.69,204.63,1.92609858]
[1757006204183,1.92609858,204.69,204.64,7.89]
[1757006204484,1.92609858,204.69,204.63,1.92609858]
[1757006204984,1.92609858,204.69,204.65,7.89]
[1757006205484,1.95847452,204.69,204.64,1.92609858]
[1757006205884,1.95847452,204.69,204.65,7.89]
[1757006206579,1.95847452,204.69,204.64,1.92609858]
[1757006206885,7.65237594,204.69,204.65,7.89]
[1757006207480,7.65237594,204.69,204.64,1.92609858]
[1757006207784,7.65237594,204.69,204.65,7.65]
[1757006208287,7.65237594,204.69,204.64,1.92609858]
[1757006208686,7.65237594,204.69,204.65,7.65]
[1757006208886,7.65237594,204.69,204.64,1.92609858]
[1757006209084,7.65237594,204.69,204.64,7.65]
[1757006209280,7.65237594,204.69,204.65,7.65]
[1757006209586,7.65237594,204.69,204.64,0.03144074]
[1757006209787,7.65237594,204.69,204.65,9.57609858]
[1757006209988,7.65237594,204.69,204.65,1.92609858]
[1757006210390,7.65237594,204.69,204.66,7.65]
[1757006210591,7.65237594,204.69,204.65,1.92609858]
[1757006210792,7.65237594,204.69,204.66,7.65]
[1757006210992,7.65237594,204.69,204.65,1.92609858]
[1757006211192,7.65237594,204.69,204.66,7.65]
[1757006211691,7.65237594,204.69,204.65,1.92609858]
[1757006212184,7.65237594,204.69,204.66,7.65]
[1757006212984,0.03237594,204.69,204.67,1.92609858]
[1757006213185,0.03237594,204.69,204.68,7.65]
[1757006220196,0.03237594,204.69,204.65,4.07735932]
[1757006220392,0.03237594,204.69,204.66,1.92609858]
[1757006220393,7.84237594,204.69,204.66,1.92609858]
[1757006220592,0.03237594,204.69,204.67,7.65]
[1757006220789,0.03237594,204.69,204.66,1.92609858]
[1757006220996,0.03237594,204.69,204.67,7.65]
[1757006221198,0.03237594,204.69,204.66,1.92609858]
[1757006221900,0.03237594,204.69,204.67,7.65]
[1757006222099,0.03237594,204.69,204.66,1.92609858]
[1757006222497,0.03237594,204.69,204.67,7.65]
[1757006222692,0.03237594,204.69,204.66,1.92609858]
[1757006223303,0.03237594,204.69,204.67,7.65]
[1757006223497,0.03237594,204.69,204.66,1.92609858]
[1757006224005,0.03237594,204.69,204.67,7.65]
[1757006224802,0.03237594,204.69,204.68,1.92609858]
[1757006225002,0.03237594,204.69,204.68,9.57609858]
[1757006230512,7.84237594,204.69,204.67,9.57609858]
[1757006231107,0.03237594,204.69,204.67,9.57609858]
[1757006232010,0.03237594,204.69,204.67,1.92609858]
[1757006232211,0.03237594,204.69,204.68,7.65]
[1757006233613,0.03237594,204.69,204.68,12.03823033]
[1757006244230,0.03237594,204.69,204.68,7.65]
[1757006247836,0.03237594,204.69,204.68,12.02169478]
[1757006249632,7.35237594,204.69,204.68,4.37169478]
[1757006249834,7.35237594,204.69,204.65,1.92609858]
[1757006250039,0.03237594,204.69,204.67,7.91]
[1757006250235,0.03237594,204.69,204.68,4.37399724]
[1757006250431,0.03237594,204.69,204.68,12.28399724]
[1757006252737,0.03237594,204.69,204.68,4.37399724]
[1757006252938,0.03237594,204.69,204.68,12.28399724]
[1757006257437,7.35237594,204.69,204.68,4.37399724]
[1757006257639,7.35237594,204.69,204.64,0.03144074]
[1757006257940,7.32,204.67,204.64,7.94144074]
[1757006258239,0.03237594,204.69,204.64,0.03144074]
[1757006258240,7.32,204.65,204.64,0.03144074]
[1757006259741,0.03237594,204.69,204.64,0.03144074]
[1757006259930,1.92609858,204.67,204.64,7.94144074]
[1757006260134,9.24609858,204.68,204.64,7.94144074]
[1757006260335,7.32,204.67,204.64,7.94144074]
[1757006260535,7.32,204.65,204.64,0.03144074]
[1757006263437,10.33161803,204.65,204.64,0.03144074]
[1757006265945,10.81161803,204.65,204.64,0.03144074]
[1757006266147,10.81161803,204.65,204.55,7.91]
[1757006266347,10.33161803,204.65,204.55,7.91]
[1757006267345,7.35103926,204.62,204.55,7.91]
[1757006273444,0.03103926,204.62,204.55,7.91]
[1757006280458,8.01,204.61,204.55,7.91]
[1757006281355,3.01161803,204.6,204.55,7.91]
[1757006281553,8.01,204.59,204.52,7.61]
[1757006282252,0.03472008,204.58,204.52,7.61]
[1757006283648,0.03472008,204.58,204.44,20.11735932]
[1757006283649,0.03472008,204.58,204.55,7.61]
[1757006284052,8.01,204.63,204.55,7.61]
[1757006284257,0.03508855,204.59,204.55,7.61]
[1757006284655,0.03508855,204.59,204.58,7.61]
[1757006286353,0.03508855,204.59,204.55,7.61]
[1757006287150,8.04508855,204.59,204.55,7.61]
[1757006287352,0.03508855,204.59,204.55,7.61]
[1757006287853,0.03508855,204.59,204.58,7.61]
[1757006289360,0.03508855,204.59,204.55,7.61]
[1757006289857,0.03508855,204.59,204.52,7.61]
[1757006291058,0.03508855,204.59,204.54,3.01161803]
[1757006291263,0.03508855,204.59,204.55,7.61]
[1757006292360,0.03508855,204.59,204.56,4.3986]
[1757006292560,0.03508855,204.59,204.57,7.61]
[1757006292962,0.03508855,204.59,204.54,7.41061803]
[1757006293662,0.03508855,204.59,204.54,4.399]
[1757006294064,0.03508855,204.59,204.55,7.61]
[1757006294459,0.03508855,204.59,204.54,4.399]
[1757006294964,0.03508855,204.59,204.55,7.61]
[1757006295363,0.03508855,204.59,204.54,4.399]
[1757006295564,0.03508855,204.59,204.55,7.61]
[1757006295968,0.03508855,204.59,204.53,7.61]
[1757006303362,0.03508855,204.59,204.55,7.7]
[1757006303568,0.03508855,204.59,204.55,3.01161803]
[1757006303765,0.03508855,204.59,204.56,7.7]
[1757006304868,0.03508855,204.59,204.56,4.3984]
[1757006305069,0.03508855,204.59,204.57,7.7]
[1757006306071,0.03508855,204.59,204.57,12.0982]
[1757006306271,0.03508855,204.59,204.58,7.7]
[1757006311080,0.03508855,204.59,204.56,7.7]
[1757006311376,0.03508855,204.59,204.54,4.07735932]
[1757006311575,0.03508855,204.59,204.53,4.3991]
[1757006312574,0.03508855,204.59,204.54,7.7]
[1757006312772,0.03508855,204.59,204.53,8.47645932]
[1757006312977,0.03508855,204.59,204.54,7.7]
[1757006313176,0.03508855,204.59,204.53,8.47645932]
[1757006313578,0.03508855,204.59,204.54,7.7]
[1757006314079,7.89,204.58,204.54,7.73358541]
[1757006314385,0.03508855,204.59,204.54,0.03358541]
[1757006314582,0.03508855,204.59,204.55,7.7]
[1757006314981,0.03508855,204.59,204.54,0.03358541]
[1757006315181,0.03508855,204.59,204.55,7.7]
[1757006315384,0.03508855,204.59,204.54,0.03358541]
[1757006315780,0.03508855,204.59,204.55,7.7]
[1757006315986,0.03508855,204.59,204.54,0.03358541]
[1757006316884,0.03508855,204.59,204.54,4.43258541]
[1757006317589,0.03508855,204.59,204.55,7.7]
[1757006317787,0.03508855,204.59,204.54,4.43258541]
[1757006318087,0.03508855,204.59,204.55,7.7]
[1757006318287,0.03508855,204.59,204.54,4.43258541]
[1757006318785,0.03508855,204.59,204.55,7.7]
[1757006319183,0.03508855,204.59,204.54,4.43258541]
[1757006319383,0.03508855,204.59,204.55,7.7]
[1757006320390,0.03508855,204.59,204.54,4.43258541]
[1757006320587,0.03508855,204.59,204.55,7.7]
[1757006320785,0.03508855,204.59,204.54,4.43258541]
[1757006321185,0.03508855,204.59,204.55,7.7]
[1757006321385,0.03508855,204.59,204.54,4.43258541]
[1757006321585,0.03508855,204.59,204.55,7.7]
[1757006321788,0.03508855,204.59,204.54,4.43258541]
[1757006322984,0.03508855,204.59,204.55,7.7]
[1757006323489,0.03508855,204.59,204.54,4.43258541]
[1757006323985,0.03508855,204.59,204.55,7.7]
[1757006324186,0.03508855,204.59,204.54,4.43258541]
[1757006324382,0.03508855,204.59,204.55,7.7]
[1757006324883,0.03508855,204.59,204.54,4.43258541]
[1757006325489,0.03508855,204.59,204.55,1.92738283]
[1757006326284,0.03508855,204.59,204.56,7.7]
[1757006326687,0.03508855,204.59,204.55,1.92738283]
[1757006327081,0.03508855,204.59,204.56,7.7]
[1757006327286,0.03508855,204.59,204.55,1.92738283]
[1757006327490,0.03508855,204.59,204.56,7.7]
[1757006327689,0.03508855,204.59,204.56,7.76]
[1757006328083,0.03508855,204.59,204.55,1.92738283]
[1757006330585,8.02,204.58,204.55,9.68738283]
[1757006331488,8.02,204.58,204.55,7.76]
[1757006331791,0.03508855,204.59,204.54,0.03358541]
[1757006331792,8.02,204.55,204.54,0.03358541]
[1757006333592,8.02,204.57,204.54,7.79358541]
[1757006333991,1.96247138,204.59,204.55,7.76]
[1757006334185,8.02,204.58,204.55,7.76]
[1757006335097,0.03508855,204.59,204.54,0.03358541]
[1757006335394,8.05508855,204.59,204.55,7.76]
[1757006336896,8.02,204.57,204.54,0.03358541]
[1757006337194,8.02,204.57,204.54,7.79358541]
[1757006338394,8.02,204.57,204.55,7.76]
[1757006339991,1.92738283,204.58,204.54,0.03358541]
[1757006340196,8.02,204.57,204.54,0.03358541]
[1757006340395,1.92738283,204.58,204.54,0.03358541]
[1757006341194,8.02,204.57,204.54,0.03358541]
[1757006341791,8.05508855,204.59,204.54,1.96096824]
[1757006342191,8.05508855,204.59,204.55,7.76]
[1757006343496,0.03508855,204.59,204.57,7.76]
[1757006343694,0.03508855,204.59,204.58,9.68738283]
[1757006347899,0.03508855,204.59,204.58,7.76]
[1757006348101,0.03508855,204.59,204.58,9.68738283]
[1757006349098,0.03508855,204.59,204.58,15.59367417]
[1757006349298,8.02,204.73,204.59,7.76]
[1757006349495,8.02,204.73,204.67,1.92738283]
[1757006349697,9.94738283,204.73,204.67,1.92738283]
[1757006350298,8.02,204.73,204.69,1.92738283]
[1757006350499,0.03319515,204.72,204.69,1.92738283]
[1757006350702,0.03319515,204.72,204.7,7.76]
[1757006351098,0.03319515,204.72,204.69,1.92738283]
[1757006351308,0.03319515,204.72,204.53,10.98030675]
[1757006351309,0.03319515,204.72,204.71,9.68738283]
[1757006351706,1.92738283,204.78,204.71,9.68738283]
[1757006351901,0.0350122,204.74,204.72,7.76]
[1757006352207,0.0350122,204.74,204.73,9.68738283]
[1757006354001,8.02,204.82,204.73,9.68738283]
[1757006354204,8.02,204.82,204.78,9.68738283]
[1757006354703,8.02,204.82,204.78,7.76]
[1757006355201,0.03210785,204.82,204.79,1.92738283]
[1757006355505,0.03210785,204.82,204.8,7.76]
[1757006356904,0.03210785,204.82,204.79,1.92738283]
[1757006357104,8.05210785,204.82,204.79,1.92738283]
[1757006357406,8.05210785,204.82,204.79,9.68738283]
[1757006357807,7.72,204.81,204.79,1.92738283]
[1757006358307,0.03210785,204.82,204.79,9.79738283]
[1757006358904,7.75210785,204.82,204.79,9.79738283]
[1757006361702,7.75210785,204.82,204.78,1.95937725]
[1757006362015,7.72,204.81,204.78,1.95937725]
[1757006362199,0.03210785,204.82,204.79,7.87]
[1757006362511,0.03210785,204.82,204.78,1.95937725]
[1757006362512,7.72,204.81,204.78,1.95937725]
[1757006363007,7.72,204.81,204.78,9.82937725]
[1757006363505,7.75210785,204.82,204.79,7.87]
[1757006363701,7.75210785,204.82,204.79,9.79738283]
[1757006363902,7.75210785,204.82,204.79,7.87]
[1757006367711,7.75210785,204.82,204.78,1.95937725]
[1757006367911,7.75210785,204.82,204.79,7.87]
[1757006371516,7.75210785,204.82,204.8,1.92738283]
[1757006373318,0.03210785,204.82,204.81,7.87]
[1757006373822,0.03210785,204.82,204.8,1.92738283]
[1757006374121,0.03210785,204.82,204.8,9.79738283]
[1757006375420,0.03210785,204.82,204.78,9.82937725]
[1757006375618,7.72,204.81,204.78,0.03199442]
[1757006375819,1.95949068,204.82,204.78,0.03199442]
[1757006376119,7.72,204.81,204.78,0.03199442]
[1757006376324,1.95949068,204.82,204.78,0.03199442]
[1757006376526,7.72,204.81,204.78,0.03199442]
[1757006377424,1.95949068,204.82,204.78,0.03199442]
[1757006377931,7.72,204.81,204.78,0.03199442]
[1757006378924,1.95949068,204.82,204.78,0.03199442]
[1757006379529,7.72,204.81,204.78,0.03199442]
[1757006380029,9.67949068,204.82,204.79,7.87]
[1757006380432,7.75210785,204.82,204.79,7.87]
[1757006381330,7.72,204.81,204.79,7.87]
[1757006383533,7.72,204.81,204.78,0.03199442]
[1757006383534,7.72,204.8,204.78,0.03199442]
[1757006383726,1.92738283,204.81,204.78,0.03199442]
[1757006384030,7.72,204.8,204.78,0.03199442]
[1757006385934,0.03210785,204.82,204.78,0.03199442]
[1757006386434,7.72,204.81,204.78,0.03199442]
[1757006386630,0.03210785,204.82,204.78,0.03199442]
[1757006386830,7.72,204.81,204.78,0.03199442]
[1757006387234,10.72585237,204.81,204.78,0.03199442]
[1757006387835,7.72,204.81,204.78,0.03199442]
[1757006388029,3.00585237,204.8,204.78,0.03199442]
[1757006388233,7.57,204.79,204.78,0.03199442]
[1757006391430,126.87,204.79,204.78,0.03199442]
[1757006392030,7.57,204.79,204.78,0.03199442]
[1757006392227,129.87585237,204.79,204.78,0.03199442]
[1757006392432,10.57585237,204.79,204.78,0.03199442]
[1757006392633,129.87585237,204.79,204.78,0.03199442]
[1757006393039,10.57585237,204.79,204.78,0.03199442]
[1757006393227,129.87585237,204.79,204.78,0.03199442]
[1757006393632,10.57585237,204.79,204.78,0.03199442]
[1757006394534,7.57,204.81,204.78,7.67199442]
[1757006395130,0.03210785,204.82,204.78,0.03199442]
[1757006395733,7.57,204.81,204.78,0.03199442]
[1757006396635,0.03210785,204.82,204.78,0.03199442]
[1757006396829,7.60210785,204.82,204.78,7.67199442]
[1757006397840,7.60210785,204.82,204.79,7.64]
[1757006399633,0.03210785,204.82,204.79,7.64]
[1757006399837,0.03210785,204.82,204.78,0.03199442]
[1757006400334,0.03210785,204.82,204.79,7.64]
[1757006400731,0.03210785,204.82,204.78,0.03199442]
[1757006400934,0.03210785,204.82,204.79,7.64]
[1757006401943,0.03210785,204.82,204.78,0.03199442]
[1757006402141,0.03210785,204.82,204.79,7.64]
[1757006402334,0.03210785,204.82,204.78,0.03199442]
[1757006402536,0.03210785,204.82,204.79,7.64]
[1757006402742,0.03210785,204.82,204.78,0.03199442]
[1757006403734,0.03210785,204.82,204.78,4.42579442]
[1757006403936,0.03210785,204.82,204.79,7.64]
[1757006404934,0.03210785,204.82,204.78,0.03199442]
[1757006405140,0.03210785,204.82,204.79,7.64]
[1757006405541,0.03210785,204.82,204.78,0.03199442]
[1757006405846,0.03210785,204.82,204.79,7.64]
[1757006406638,7.57,204.81,204.78,0.03199442]
[1757006406937,7.57,204.81,204.78,7.67199442]
[1757006407340,0.03210785,204.82,204.79,7.64]
[1757006407740,7.60210785,204.82,204.79,7.64]
[1757006407944,0.03210785,204.82,204.78,0.03199442]
[1757006408145,3.03796022,204.82,204.78,0.03199442]
[1757006408943,7.57,204.81,204.78,0.03199442]
[1757006409144,3.03796022,204.82,204.78,0.03199442]
[1757006410150,7.57,204.81,204.78,0.03199442]
[1757006410350,3.03796022,204.82,204.78,0.03199442]
[1757006410746,10.60796022,204.82,204.78,7.67199442]
[1757006410951,10.60796022,204.82,204.78,0.03199442]
[1757006410952,7.57,204.81,204.78,0.03199442]
[1757006411754,3.03796022,204.82,204.78,0.03199442]
[1757006411955,7.57,204.81,204.78,0.03199442]
[1757006412255,3.03796022,204.82,204.78,0.03199442]
[1757006412455,7.57,204.81,204.78,0.03199442]
[1757006413257,3.03796022,204.82,204.78,0.03199442]
[1757006413859,7.57,204.81,204.78,0.03199442]
[1757006414056,0.03210785,204.82,204.78,0.03199442]
[1757006414256,7.57,204.81,204.78,0.03199442]
[1757006414457,0.03210785,204.82,204.78,0.03199442]
[1757006414656,7.57,204.81,204.78,0.03199442]
[1757006415052,0.03210785,204.82,204.78,0.03199442]
[1757006415558,7.57,204.81,204.78,0.03199442]
[1757006416055,0.03210785,204.82,204.78,0.03199442]
[1757006416261,0.03210785,204.82,204.79,7.64]
[1757006417056,0.03210785,204.82,204.78,3.03784679]
[1757006417260,0.03210785,204.82,204.79,7.64]
[1757006417658,0.03210785,204.82,204.79,7.76]
[1757006418061,0.03210785,204.82,204.78,3.03784679]
[1757006418262,0.03210785,204.82,204.79,7.76]
[1757006419358,0.03210785,204.82,204.78,0.03199442]
[1757006419861,7.63,204.81,204.78,0.03199442]
[1757006420563,0.03210785,204.82,204.78,0.03199442]
[1757006420762,7.63,204.81,204.78,0.03199442]
[1757006420963,0.03210785,204.82,204.78,0.03199442]
[1757006421863,7.63,204.81,204.78,0.03199442]
[1757006422059,0.03210785,204.82,204.78,0.03199442]
[1757006422258,7.63,204.81,204.78,0.03199442]
[1757006422456,0.03210785,204.82,204.78,0.03199442]
[1757006422655,7.63,204.81,204.78,0.03199442]
[1757006422856,0.03210785,204.82,204.78,0.03199442]
[1757006423059,7.63,204.81,204.78,0.03199442]
[1757006423856,0.03210785,204.82,204.78,0.03199442]
[1757006424555,7.63,204.81,204.78,0.03199442]
[1757006424763,0.03210785,204.82,204.78,0.03199442]
[1757006425163,0.03210785,204.82,204.79,7.76]
[1757006425365,0.03210785,204.82,204.78,0.03199442]
[1757006425764,0.03210785,204.82,204.79,7.76]
[1757006426362,0.03210785,204.82,204.78,0.03199442]
[1757006427266,0.03210785,204.82,204.79,7.76]
[1757006427664,0.03210785,204.82,204.78,0.03199442]
[1757006427862,0.03210785,204.82,204.79,12.1536]
[1757006428061,0.03210785,204.82,204.79,4.3936]
[1757006429070,0.03210785,204.82,204.8,7.76]
[1757006429467,0.03210785,204.82,204.79,4.3936]
[1757006429771,0.03210785,204.82,204.8,7.76]
[1757006429967,0.03210785,204.82,204.79,4.3936]
[1757006430569,0.03210785,204.82,204.79,7.39945237]
[1757006430770,0.03210785,204.82,204.8,7.76]
[1757006431168,0.03210785,204.82,204.81,7.76]
[1757006432170,7.63,204.91,204.81,7.76]
[1757006432171,7.63,204.91,204.85,7.76]
[1757006433475,7.63,204.91,204.87,7.76]
[1757006433873,20.67585237,204.95,204.87,7.76]
[1757006441779,17.67,204.95,204.87,7.76]
[1757006441978,20.67585237,204.95,204.87,7.76]
[1757006442873,5.48580414,204.94,204.87,7.76]
[1757006443075,7.63,204.93,204.87,7.76]
[1757006443775,7.63,204.93,204.86,0.03321963]
[1757006444880,13.11580414,204.93,204.86,0.03321963]
[1757006445274,7.63,204.93,204.86,0.03321963]
[1757006445475,3.00585237,204.92,204.86,0.03321963]
[1757006446475,7.63,204.91,204.86,0.03321963]
[1757006446879,13.11580414,204.91,204.86,0.03321963]
[1757006447078,7.63,204.9,204.86,0.03321963]
[1757006447582,7.9,204.88,204.86,0.03321963]
[1757006447780,1.9222482,204.89,204.86,0.03321963]
[1757006448172,7.9,204.88,204.86,0.03321963]
[1757006448377,1.9222482,204.89,204.86,0.03321963]
[1757006448880,5.48580414,204.91,204.86,7.82321963]
[1757006449075,7.9,204.9,204.86,7.82321963]
[1757006449278,7.9,204.9,204.87,7.79]
[1757006449583,7.9,204.91,204.87,7.79]
[1757006449780,1.9222482,204.92,204.87,7.79]
[1757006449978,7.9,204.91,204.87,7.79]
[1757006450283,1.9222482,204.92,204.87,7.79]
[1757006450484,7.9,204.91,204.87,7.79]
[1757006450678,15.30805234,204.93,204.87,1.9222482]
[1757006450885,7.9,204.93,204.87,1.9222482]
[1757006451079,0.03136544,204.92,204.87,1.9222482]
[1757006451281,7.93136544,204.92,204.88,7.79]
[1757006452081,0.03136544,204.92,204.88,7.79]
[1757006452280,7.9,204.91,204.88,7.79]
[1757006453982,0.03136544,204.92,204.88,1.9222482]
[1757006454184,0.03136544,204.92,204.9,1.9222482]
[1757006454386,0.03136544,204.92,204.91,7.79]
[1757006456389,0.03136544,204.92,204.91,8.27]
[1757006457087,7.9,205.01,204.91,8.27]
[1757006457286,7.9,205.01,204.98,9.7122482]
[1757006457689,1.9222482,205.05,204.99,7.79]
[1757006458085,7.9,205.03,204.99,7.79]
[1757006458283,1.9222482,205.02,205.0,0.0320051]
[1757006458486,9.8222482,205.06,205.0,1.9542533]
[1757006458688,9.8222482,205.06,205.0,1.9222482]
[1757006458885,1.9222482,205.06,205.01,0.03213934]
[1757006459593,7.9,205.05,205.01,0.03213934]
[1757006460195,1.9222482,205.06,205.02,7.79]
[1757006460196,7.9,205.06,205.02,7.79]
[1757006460391,7.9,205.05,205.01,1.95438754]
[1757006460593,315.28910149,205.1,205.01,0.03213934]
[1757006460793,7.9,205.09,205.02,1.9222482]
[1757006460989,1.9222482,205.08,205.01,7.82213934]
[1757006461193,1.9222482,205.06,205.01,7.82213934]
[1757006461590,7.9,205.05,205.01,7.82213934]
[1757006461794,433.66,205.1,205.01,0.03213934]
[1757006461795,7.9,205.03,205.01,0.03213934]
[1757006461996,1.9222482,205.04,205.01,0.03213934]
[1757006461997,9.8222482,205.02,205.01,0.03213934]
[1757006462795,7.9,205.02,205.01,0.03213934]
[1757006463095,9.8222482,205.02,205.01,0.03213934]
[1757006464188,129.1622482,205.02,205.01,0.03213934]
[1757006465197,119.32,205.03,205.01,0.03213934]
[1757006465999,7.9,205.03,205.01,0.03213934]
[1757006468095,127.2,205.03,205.01,0.03213934]
[1757006468501,119.3,205.03,205.01,0.03213934]
[1757006469498,1.9222482,205.04,205.01,0.03213934]
[1757006469699,119.28,205.03,205.01,0.03213934]
[1757006470108,9.8222482,205.02,205.01,0.03213934]
[1757006471101,1.9222482,205.04,205.01,0.03213934]
[1757006471300,119.26,205.03,205.01,7.82213934]
[1757006472005,9.8222482,205.04,205.01,7.82213934]
[1757006472206,119.26,205.03,205.01,7.82213934]